[Event "Live Chess"]
[Site "Chess.com"]
[Date "2023.05.21"]
[Round "-"]
[White "Alfiedog12"]
[Black "PantherCal"]
[Result "0-1"]
[WhiteElo "947"]
[BlackElo "1791"]
[TimeControl "300"]
[EndTime "6:01:09 PDT"]
[Termination "PantherCal won by resignation"]

1. d4 {[%clk 0:04:57.8]} 1... d5 {[%clk 0:04:59.1]} 2. Bf4 {[%clk 0:04:56.6]}
2... c6 {[%clk 0:04:59]} 3. Nf3 {[%clk 0:04:55.3]} 3... Nf6 {[%clk 0:04:58.8]}
4. e3 {[%clk 0:04:54.2]} 4... Bf5 {[%clk 0:04:58.4]} 5. Nbd2 {[%clk 0:04:53]}
5... e6 {[%clk 0:04:57.9]} 6. c3 {[%clk 0:04:52.3]} 6... Bd6 {[%clk 0:04:57.3]}
7. Bxd6 {[%clk 0:04:49.7]} 7... Qxd6 {[%clk 0:04:57.2]} 8. Be2 {[%clk
0:04:46.6]} 8... Nbd7 {[%clk 0:04:56.6]} 9. Qb3 {[%clk 0:04:43.1]} 9... b6
{[%clk 0:04:53.9]} 10. O-O {[%clk 0:04:31.4]} 10... O-O {[%clk 0:04:53.5]} 11.
Rfe1 {[%clk 0:04:30.1]} 11... c5 {[%clk 0:04:51.9]} 12. Qb5 {[%clk 0:04:19.3]}
12... Rfd8 {[%clk 0:04:34]} 13. Nh4 {[%clk 0:04:04.5]} 13... Bg6 {[%clk
0:04:32.3]} 14. Nxg6 {[%clk 0:04:02.1]} 14... hxg6 {[%clk 0:04:32.2]} 15. Bf3
{[%clk 0:03:54.8]} 15... cxd4 {[%clk 0:04:17.3]} 16. exd4 {[%clk 0:03:50.5]}
16... a6 {[%clk 0:04:08.2]} 17. Qb3 {[%clk 0:03:44.9]} 17... Rac8 {[%clk
0:04:02.9]} 18. a3 {[%clk 0:03:34]} 18... b5 {[%clk 0:04:02.1]} 19. Qb4 {[%clk
0:03:31]} 19... Nb6 {[%clk 0:03:57.9]} 20. Qxd6 {[%clk 0:03:29]} 20... Rxd6
{[%clk 0:03:57.8]} 21. Nb3 {[%clk 0:03:24.2]} 21... Nc4 {[%clk 0:03:52.8]} 22.
Re2 {[%clk 0:03:12.2]} 22... Nd7 {[%clk 0:03:42.6]} 23. a4 {[%clk 0:02:50.5]}
23... b4 {[%clk 0:03:30.2]} 24. cxb4 {[%clk 0:02:43.3]} 24... Rb6 {[%clk
0:03:29.7]} 25. b5 {[%clk 0:02:36.4]} 25... axb5 {[%clk 0:03:29.6]} 26. a5
{[%clk 0:02:32.9]} 26... Ra6 {[%clk 0:03:24.8]} 27. Nc5 {[%clk 0:02:24.3]} 27...
Nxc5 {[%clk 0:03:23.7]} 28. dxc5 {[%clk 0:02:23.3]} 28... Rxc5 {[%clk
0:03:23.2]} 29. Rc2 {[%clk 0:02:07.8]} 29... Rcc6 {[%clk 0:03:06.5]} 30. Rac1
{[%clk 0:01:51]} 30... Ne5 {[%clk 0:03:05.2]} 31. Rxc6 {[%clk 0:01:38.3]} 31...
Rxc6 {[%clk 0:03:00.8]} 32. Rxc6 {[%clk 0:01:33.5]} 32... Nxc6 {[%clk
0:03:00.7]} 33. a6 {[%clk 0:01:31.2]} 33... Na7 {[%clk 0:02:59.9]} 34. Be2
{[%clk 0:01:28.2]} 34... Kf8 {[%clk 0:02:57.5]} 35. Bxb5 {[%clk 0:01:26.7]}
35... Nxb5 {[%clk 0:02:55.9]} 36. Kf1 {[%clk 0:01:18.2]} 36... Ke7 {[%clk
0:02:54.6]} 37. Ke2 {[%clk 0:01:16.7]} 37... Kd6 {[%clk 0:02:54.1]} 38. Kd3
{[%clk 0:01:16]} 38... Kc6 {[%clk 0:02:53.6]} 39. b4 {[%clk 0:01:10.3]} 39...
Kb6 {[%clk 0:02:52.4]} 40. a7 {[%clk 0:01:08.1]} 40... Kxa7 {[%clk 0:02:51.2]}
41. f3 {[%clk 0:01:03.9]} 41... Kb6 {[%clk 0:02:50.3]} 42. g4 {[%clk 0:01:01.9]}
42... e5 {[%clk 0:02:49.5]} 43. h4 {[%clk 0:01:01.6]} 43... Nd6 {[%clk
0:02:48.1]} 44. Kc3 {[%clk 0:00:58.6]} 44... Kb5 {[%clk 0:02:46.9]} 45. h5
{[%clk 0:00:54.1]} 45... gxh5 {[%clk 0:02:46.1]} 46. gxh5 {[%clk 0:00:52.8]}
46... d4+ {[%clk 0:02:45.7]} 47. Kd3 {[%clk 0:00:48.8]} 47... Kxb4 {[%clk
0:02:45]} 0-1

[Event "Live Chess"]
[Site "Chess.com"]
[Date "2023.05.21"]
[Round "-"]
[White "JoeRoot66"]
[Black "LanceMaster23"]
[Result "1/2-1/2"]
[WhiteElo "1890"]
[BlackElo "1945"]
[TimeControl "300"]
[EndTime "6:01:25 PDT"]
[Termination "Game drawn - insufficient material"]

1. e4 {[%clk 0:04:59.3]} 1... c5 {[%clk 0:04:58.6]} 2. c3 {[%clk 0:04:58.6]}
2... d5 {[%clk 0:04:57.3]} 3. exd5 {[%clk 0:04:58.5]} 3... Qxd5 {[%clk
0:04:56.3]} 4. d4 {[%clk 0:04:58.3]} 4... Nc6 {[%clk 0:04:54.9]} 5. Nf3 {[%clk
0:04:57.9]} 5... cxd4 {[%clk 0:04:53.3]} 6. cxd4 {[%clk 0:04:56.8]} 6... e6
{[%clk 0:04:52.7]} 7. Nc3 {[%clk 0:04:56.2]} 7... Qd8 {[%clk 0:04:50.8]} 8. Bb5
{[%clk 0:04:53.3]} 8... Bd7 {[%clk 0:04:49.1]} 9. O-O {[%clk 0:04:52.4]} 9...
Nf6 {[%clk 0:04:47.7]} 10. Ne5 {[%clk 0:04:50.1]} 10... a6 {[%clk 0:03:36.7]}
11. Bxc6 {[%clk 0:04:44.3]} 11... Bxc6 {[%clk 0:03:34.8]} 12. Nxc6 {[%clk
0:04:42.8]} 12... bxc6 {[%clk 0:03:34.7]} 13. Bg5 {[%clk 0:04:41]} 13... Be7
{[%clk 0:03:34]} 14. Qf3 {[%clk 0:04:37.7]} 14... Qb6 {[%clk 0:03:30.2]} 15. Na4
{[%clk 0:04:32.5]} 15... Qb5 {[%clk 0:03:20.3]} 16. Nc3 {[%clk 0:04:26]} 16...
Qb7 {[%clk 0:03:03.5]} 17. Rfd1 {[%clk 0:04:17.8]} 17... O-O {[%clk 0:03:01.5]}
18. Bxf6 {[%clk 0:04:14]} 18... Bxf6 {[%clk 0:02:59.9]} 19. Ne4 {[%clk
0:04:13.9]} 19... Be7 {[%clk 0:02:55.1]} 20. Nc5 {[%clk 0:04:10]} 20... Qxb2
{[%clk 0:02:44.3]} 21. Qxc6 {[%clk 0:03:57.6]} 21... Rfc8 {[%clk 0:02:40.9]} 22.
Qd7 {[%clk 0:03:52.3]} 22... Bf6 {[%clk 0:02:28.8]} 23. Rab1 {[%clk 0:03:29.1]}
23... Qxa2 {[%clk 0:02:19.4]} 24. Rb7 {[%clk 0:03:24.3]} 24... Rf8 {[%clk
0:02:09.6]} 25. Ne4 {[%clk 0:03:20.9]} 25... Qe2 {[%clk 0:01:50.2]} 26. Nxf6+
{[%clk 0:03:15.3]} 26... gxf6 {[%clk 0:01:50.1]} 27. Rdb1 {[%clk 0:03:11.7]}
27... Rac8 {[%clk 0:01:46.4]} 28. h3 {[%clk 0:03:01.3]} 28... Rc2 {[%clk
0:01:44.6]} 29. Rf1 {[%clk 0:02:48.6]} 29... Rd2 {[%clk 0:01:43.6]} 30. Qe7
{[%clk 0:02:41.4]} 30... Kg7 {[%clk 0:01:27.3]} 31. Rd7 {[%clk 0:02:13.4]} 31...
Qe4 {[%clk 0:01:19.4]} 32. Qd6 {[%clk 0:01:51.3]} 32... a5 {[%clk 0:00:59.3]}
33. Qg3+ {[%clk 0:01:48.1]} 33... Qg6 {[%clk 0:00:56.6]} 34. Qc3 {[%clk
0:01:42.5]} 34... Rd3 {[%clk 0:00:52.5]} 35. Qxa5 {[%clk 0:01:38.1]} 35... Rxh3
{[%clk 0:00:52.1]} 36. d5 {[%clk 0:01:32.1]} 36... Rh5 {[%clk 0:00:49.9]} 37.
Qd2 {[%clk 0:01:26.9]} 37... Rg5 {[%clk 0:00:39.7]} 38. f4 {[%clk 0:01:16.6]}
38... Rxd5 {[%clk 0:00:34.9]} 39. Rxd5 {[%clk 0:01:14.8]} 39... exd5 {[%clk
0:00:34.8]} 40. Qxd5 {[%clk 0:01:14]} 40... Rc8 {[%clk 0:00:33.3]} 41. Rf3
{[%clk 0:01:02.3]} 41... Rc1+ {[%clk 0:00:26.4]} 42. Kh2 {[%clk 0:01:01]} 42...
Qh6+ {[%clk 0:00:23.4]} 43. Rh3 {[%clk 0:00:55.5]} 43... Qxf4+ {[%clk
0:00:22.1]} 44. Rg3+ {[%clk 0:00:55]} 44... Kh6 {[%clk 0:00:20.2]} 45. Qxf7
{[%clk 0:00:49.5]} 45... Rh1+ {[%clk 0:00:19.2]} 46. Kxh1 {[%clk 0:00:48.4]}
46... Qxg3 {[%clk 0:00:18.9]} 47. Qxf6+ {[%clk 0:00:45.9]} 47... Kh5 {[%clk
0:00:17.9]} 48. Qf5+ {[%clk 0:00:41.7]} 48... Kh6 {[%clk 0:00:17.3]} 49. Qf6+
{[%clk 0:00:37.3]} 49... Qg6 {[%clk 0:00:16.5]} 50. Qf4+ {[%clk 0:00:35.6]}
50... Qg5 {[%clk 0:00:15.6]} 51. Qf8+ {[%clk 0:00:32.9]} 51... Kh5 {[%clk
0:00:15.3]} 52. Qf3+ {[%clk 0:00:29.9]} 52... Qg4 {[%clk 0:00:14.5]} 53. Kh2
{[%clk 0:00:26.9]} 53... Qxf3 {[%clk 0:00:13.5]} 54. gxf3 {[%clk 0:00:26.8]}
54... Kg5 {[%clk 0:00:13.4]} 55. Kg3 {[%clk 0:00:26]} 55... h5 {[%clk
0:00:12.9]} 56. f4+ {[%clk 0:00:22.2]} 56... Kf5 {[%clk 0:00:12.3]} 57. Kh4
{[%clk 0:00:19.6]} 57... Kxf4 {[%clk 0:00:12.2]} 58. Kxh5 {[%clk 0:00:19.2]}
1/2-1/2

[Event "Live Chess"]
[Site "Chess.com"]
[Date "2023.05.21"]
[Round "-"]
[White "JoRoSaR"]
[Black "garyjc"]
[Result "1-0"]
[WhiteElo "1690"]
[BlackElo "1040"]
[TimeControl "300"]
[EndTime "6:01:27 PDT"]
[Termination "JoRoSaR won by resignation"]

1. e4 {[%clk 0:04:51.7]} 1... c5 {[%clk 0:04:56.4]} 2. Nf3 {[%clk 0:04:50.8]}
2... a6 {[%clk 0:04:54]} 3. d4 {[%clk 0:04:49.3]} 3... cxd4 {[%clk 0:04:48.6]}
4. Nxd4 {[%clk 0:04:49.2]} 4... b5 {[%clk 0:04:35.9]} 5. Be3 {[%clk 0:04:43.3]}
5... d6 {[%clk 0:04:18.7]} 6. Be2 {[%clk 0:04:39]} 6... g6 {[%clk 0:04:14.6]} 7.
O-O {[%clk 0:04:34.3]} 7... Bb7 {[%clk 0:04:12.8]} 8. c3 {[%clk 0:04:33.1]} 8...
Bxe4 {[%clk 0:04:10.5]} 9. f3 {[%clk 0:04:32.6]} 9... Bb7 {[%clk 0:04:09]} 10.
Nb3 {[%clk 0:04:29.4]} 10... Bg7 {[%clk 0:04:04.3]} 11. Qc2 {[%clk 0:04:27.2]}
11... Nf6 {[%clk 0:04:00.3]} 12. a4 {[%clk 0:04:26.3]} 12... O-O {[%clk
0:03:57.7]} 13. axb5 {[%clk 0:04:23.6]} 13... Nd5 {[%clk 0:03:39]} 14. Bd4
{[%clk 0:04:16.5]} 14... Bxd4+ {[%clk 0:03:31.2]} 15. Nxd4 {[%clk 0:04:16.4]}
15... Ne3 {[%clk 0:03:28.6]} 16. Qb3 {[%clk 0:04:09.3]} 16... Nxf1 {[%clk
0:03:25.2]} 17. bxa6 {[%clk 0:04:08.6]} 17... Nxa6 {[%clk 0:03:16.8]} 18. Qxb7
{[%clk 0:04:03.8]} 18... Ne3 {[%clk 0:03:08.3]} 19. Rxa6 {[%clk 0:03:58.1]}
19... Rxa6 {[%clk 0:03:04.4]} 20. Qxa6 {[%clk 0:03:57.2]} 20... Qd7 {[%clk
0:02:49.1]} 21. Qd3 {[%clk 0:03:37]} 21... Nd5 {[%clk 0:02:36.9]} 22. c4 {[%clk
0:03:27.4]} 22... Nf6 {[%clk 0:02:26.1]} 23. b4 {[%clk 0:03:26.1]} 23... e5
{[%clk 0:02:24.2]} 24. Nb5 {[%clk 0:03:21.4]} 24... Rb8 {[%clk 0:02:13.1]} 25.
N1c3 {[%clk 0:03:18.2]} 25... Nh5 {[%clk 0:02:01.7]} 26. g3 {[%clk 0:03:04.6]}
26... Ra8 {[%clk 0:01:52.5]} 27. Qxd6 {[%clk 0:03:02.5]} 27... Ra1+ {[%clk
0:01:43.2]} 28. Kg2 {[%clk 0:02:56.6]} 28... Qxd6 {[%clk 0:01:36.2]} 29. Nxd6
{[%clk 0:02:56.5]} 29... Nf6 {[%clk 0:01:31.5]} 30. b5 {[%clk 0:02:54.3]} 30...
Rc1 {[%clk 0:01:27.4]} 31. Nce4 {[%clk 0:02:45.6]} 31... Nxe4 {[%clk 0:01:21.2]}
32. fxe4 {[%clk 0:02:44.4]} 32... Rc2 {[%clk 0:01:19.5]} 33. Kf3 {[%clk
0:02:43.7]} 33... Kg7 {[%clk 0:01:12.9]} 34. b6 {[%clk 0:02:42.9]} 34... Rb2
{[%clk 0:01:08.6]} 35. b7 {[%clk 0:02:42]} 35... Kf6 {[%clk 0:01:05.8]} 36. Nb5
{[%clk 0:02:40.5]} 1-0

[Event "Live Chess"]
[Site "Chess.com"]
[Date "2023.05.21"]
[Round "-"]
[White "JohanKjeldahl"]
[Black "davigator"]
[Result "1-0"]
[WhiteElo "1880"]
[BlackElo "2306"]
[TimeControl "300"]
[EndTime "6:01:40 PDT"]
[Termination "JohanKjeldahl won by resignation"]

1. c4 {[%clk 0:04:57.3]} 1... e5 {[%clk 0:04:57.9]} 2. Nc3 {[%clk 0:04:55.7]}
2... Bb4 {[%clk 0:04:55.5]} 3. Nd5 {[%clk 0:04:53.4]} 3... Bf8 {[%clk
0:04:53.9]} 4. Nf3 {[%clk 0:04:52.3]} 4... c6 {[%clk 0:04:53.4]} 5. Nc3 {[%clk
0:04:50.5]} 5... d6 {[%clk 0:04:51.6]} 6. e3 {[%clk 0:04:49.4]} 6... Nf6 {[%clk
0:04:48.5]} 7. Qc2 {[%clk 0:04:47.8]} 7... h6 {[%clk 0:04:40.6]} 8. a3 {[%clk
0:04:46.3]} 8... g6 {[%clk 0:04:37.4]} 9. b4 {[%clk 0:04:45.3]} 9... Bg7 {[%clk
0:04:36.3]} 10. Bb2 {[%clk 0:04:44.4]} 10... O-O {[%clk 0:04:35.4]} 11. Be2
{[%clk 0:04:42.1]} 11... a5 {[%clk 0:04:34.5]} 12. O-O {[%clk 0:04:40.1]} 12...
Bf5 {[%clk 0:04:28.1]} 13. d3 {[%clk 0:04:37.6]} 13... Re8 {[%clk 0:04:19.6]}
14. e4 {[%clk 0:04:36.4]} 14... Bg4 {[%clk 0:04:15.7]} 15. h3 {[%clk 0:04:34.9]}
15... Bxf3 {[%clk 0:04:14.5]} 16. Bxf3 {[%clk 0:04:34]} 16... Nbd7 {[%clk
0:04:11.4]} 17. Nd1 {[%clk 0:04:27.3]} 17... Nf8 {[%clk 0:04:09.6]} 18. Ne3
{[%clk 0:04:25.2]} 18... Ne6 {[%clk 0:04:08.1]} 19. c5 {[%clk 0:04:14.8]} 19...
Nd4 {[%clk 0:04:06.3]} 20. Bxd4 {[%clk 0:04:11]} 20... exd4 {[%clk 0:04:06.2]}
21. Nc4 {[%clk 0:04:05.7]} 21... dxc5 {[%clk 0:04:02.2]} 22. bxc5 {[%clk
0:04:03.8]} 22... Qc7 {[%clk 0:03:56.6]} 23. Nd6 {[%clk 0:04:01.7]} 23... Re6
{[%clk 0:03:49.3]} 24. Rfe1 {[%clk 0:03:37.2]} 24... Nd7 {[%clk 0:03:46.2]} 25.
Bg4 {[%clk 0:03:31.1]} 25... Re7 {[%clk 0:03:45.3]} 26. Bxd7 {[%clk 0:03:14.6]}
26... Rxd7 {[%clk 0:03:43.5]} 27. Nc4 {[%clk 0:03:13.2]} 27... Bf8 {[%clk
0:03:37.8]} 28. Nb6 {[%clk 0:03:05.9]} 28... Re8 {[%clk 0:03:31.5]} 29. Nxd7
{[%clk 0:03:04.1]} 29... Qxd7 {[%clk 0:03:31.4]} 30. Rab1 {[%clk 0:03:02.1]}
30... Re5 {[%clk 0:03:29.8]} 31. Rec1 {[%clk 0:02:52.1]} 31... Rxc5 {[%clk
0:03:27.2]} 32. Qb3 {[%clk 0:02:48.3]} 32... Rb5 {[%clk 0:03:22.8]} 33. Qc4
{[%clk 0:02:45.9]} 33... Rxb1 {[%clk 0:03:21.2]} 34. Rxb1 {[%clk 0:02:44]} 34...
Bxa3 {[%clk 0:03:20.6]} 35. Qb3 {[%clk 0:02:37.7]} 35... Bb4 {[%clk 0:03:19.5]}
36. f4 {[%clk 0:02:31.8]} 36... Kg7 {[%clk 0:03:18]} 37. Qc4 {[%clk 0:02:26.8]}
37... b5 {[%clk 0:03:16.7]} 38. Qc1 {[%clk 0:02:22.8]} 38... c5 {[%clk 0:03:12]}
39. g4 {[%clk 0:02:18.7]} 39... h5 {[%clk 0:03:07.8]} 40. Qd1 {[%clk 0:02:14.1]}
40... hxg4 {[%clk 0:03:04.2]} 41. hxg4 {[%clk 0:02:13]} 41... Qd6 {[%clk
0:03:03.5]} 42. Qf1 {[%clk 0:02:09.7]} 42... Bd2 {[%clk 0:02:57.6]} 43. e5
{[%clk 0:02:05.8]} 43... Qc6 {[%clk 0:02:54.7]} 44. Rb2 {[%clk 0:01:58.9]} 44...
Be3+ {[%clk 0:02:53.2]} 45. Kh2 {[%clk 0:01:56.8]} 45... c4 {[%clk 0:02:50.3]}
46. dxc4 {[%clk 0:01:53.9]} 46... bxc4 {[%clk 0:02:48]} 47. f5 {[%clk
0:01:47.6]} 47... gxf5 {[%clk 0:02:42.7]} 48. gxf5 {[%clk 0:01:45.7]} 48... Qh6+
{[%clk 0:02:41]} 49. Kg2 {[%clk 0:01:43.2]} 49... Qg5+ {[%clk 0:02:36.5]} 50.
Kh3 {[%clk 0:01:38.2]} 50... Qh5+ {[%clk 0:02:33.9]} 51. Kg3 {[%clk 0:01:34.2]}
51... c3 {[%clk 0:02:21.7]} 52. f6+ {[%clk 0:01:30.4]} 52... Kg6 {[%clk
0:02:18.6]} 53. Rg2 {[%clk 0:01:27.3]} 53... Bg5 {[%clk 0:01:56.7]} 54. Qd3+
{[%clk 0:01:25.5]} 54... Kh6 {[%clk 0:01:53.3]} 55. Qxd4 {[%clk 0:01:18]} 55...
c2 {[%clk 0:01:48.4]} 56. Rxc2 {[%clk 0:01:10.2]} 56... Qg6 {[%clk 0:01:36.1]}
57. Rh2+ {[%clk 0:01:08.3]} 57... Bh4+ {[%clk 0:01:35.4]} 58. Kxh4 {[%clk
0:00:50.7]} 58... Kh7 {[%clk 0:01:32]} 59. Qg4 {[%clk 0:00:46.5]} 1-0

[Event "Live Chess"]
[Site "Chess.com"]
[Date "2023.05.21"]
[Round "-"]
[White "KeithArkell"]
[Black "LL220284LL"]
[Result "1-0"]
[WhiteElo "2480"]
[BlackElo "2277"]
[TimeControl "300"]
[EndTime "6:01:40 PDT"]
[Termination "KeithArkell won by resignation"]

1. d4 {[%clk 0:04:54.5]} 1... Nf6 {[%clk 0:04:59]} 2. Nf3 {[%clk 0:04:52.8]}
2... e6 {[%clk 0:04:58.2]} 3. c4 {[%clk 0:04:52.1]} 3... Bb4+ {[%clk 0:04:57]}
4. Bd2 {[%clk 0:04:51.5]} 4... Bxd2+ {[%clk 0:04:56.2]} 5. Qxd2 {[%clk
0:04:50.9]} 5... O-O {[%clk 0:04:55.7]} 6. Nc3 {[%clk 0:04:50.3]} 6... b6 {[%clk
0:04:54.5]} 7. g3 {[%clk 0:04:49.5]} 7... Bb7 {[%clk 0:04:53.4]} 8. Bg2 {[%clk
0:04:48.9]} 8... d5 {[%clk 0:04:52.5]} 9. cxd5 {[%clk 0:04:47.5]} 9... Nxd5
{[%clk 0:04:51.3]} 10. O-O {[%clk 0:04:45.7]} 10... Nxc3 {[%clk 0:04:48.4]} 11.
bxc3 {[%clk 0:04:44.3]} 11... Nd7 {[%clk 0:04:47.9]} 12. Nh4 {[%clk 0:04:42.1]}
12... Bxg2 {[%clk 0:04:44.8]} 13. Nxg2 {[%clk 0:04:42]} 13... c5 {[%clk
0:04:44.1]} 14. Rfd1 {[%clk 0:04:40.1]} 14... Qe7 {[%clk 0:04:42.6]} 15. Nf4
{[%clk 0:04:38.5]} 15... Rfd8 {[%clk 0:04:40.7]} 16. Nd3 {[%clk 0:04:26.6]}
16... cxd4 {[%clk 0:04:38]} 17. cxd4 {[%clk 0:04:25.9]} 17... Rac8 {[%clk
0:04:36.1]} 18. Rac1 {[%clk 0:04:24]} 18... Qa3 {[%clk 0:04:30]} 19. Rc2 {[%clk
0:04:17.1]} 19... Nf6 {[%clk 0:04:26.3]} 20. e3 {[%clk 0:04:12.9]} 20... Ne4
{[%clk 0:04:19.1]} 21. Qc1 {[%clk 0:04:10]} 21... Qxc1 {[%clk 0:04:13.7]} 22.
Rdxc1 {[%clk 0:04:09.9]} 22... Nd6 {[%clk 0:04:12.6]} 23. Ne5 {[%clk 0:04:07]}
23... Rxc2 {[%clk 0:04:10.3]} 24. Rxc2 {[%clk 0:04:06.2]} 24... Rc8 {[%clk
0:04:10.2]} 25. Rb2 {[%clk 0:03:54.8]} 25... f6 {[%clk 0:04:07.8]} 26. Nd3
{[%clk 0:03:53.4]} 26... Kf7 {[%clk 0:04:06.5]} 27. a4 {[%clk 0:03:52]} 27...
Ke7 {[%clk 0:04:01.8]} 28. a5 {[%clk 0:03:50.4]} 28... Nc4 {[%clk 0:03:57.9]}
29. Rc2 {[%clk 0:03:45.9]} 29... bxa5 {[%clk 0:03:56.9]} 30. Nc5 {[%clk
0:03:43.3]} 30... Nb6 {[%clk 0:03:54.1]} 31. Ra2 {[%clk 0:03:42.2]} 31... a4
{[%clk 0:03:53]} 32. Nxa4 {[%clk 0:03:40.9]} 32... Nxa4 {[%clk 0:03:52.1]} 33.
Rxa4 {[%clk 0:03:40.1]} 33... Rc7 {[%clk 0:03:51.7]} 34. Ra6 {[%clk 0:03:38.5]}
34... Kd7 {[%clk 0:03:50.3]} 35. Kg2 {[%clk 0:03:36.4]} 35... Ke7 {[%clk
0:03:49.6]} 36. g4 {[%clk 0:03:34.6]} 36... Rb7 {[%clk 0:03:48.4]} 37. h4 {[%clk
0:03:33.5]} 37... Kf7 {[%clk 0:03:45.5]} 38. Kf3 {[%clk 0:03:32.7]} 38... g6
{[%clk 0:03:44]} 39. g5 {[%clk 0:03:28.5]} 39... Rd7 {[%clk 0:03:40]} 40. Kf4
{[%clk 0:03:24.2]} 40... Ke7 {[%clk 0:03:33.9]} 41. f3 {[%clk 0:03:12.8]} 41...
Kf7 {[%clk 0:03:32.1]} 42. Ke4 {[%clk 0:03:09]} 42... Ke7 {[%clk 0:03:30.5]} 43.
f4 {[%clk 0:03:03.4]} 43... Kf7 {[%clk 0:03:29.2]} 44. Kd3 {[%clk 0:02:58.4]}
44... Ke7 {[%clk 0:03:25.9]} 45. e4 {[%clk 0:02:54.9]} 45... Kf7 {[%clk
0:03:14.6]} 46. gxf6 {[%clk 0:02:53.8]} 46... Kxf6 {[%clk 0:03:09.2]} 47. d5
{[%clk 0:02:52.6]} 47... Kf7 {[%clk 0:03:08.4]} 48. Rxe6 {[%clk 0:02:49.3]}
48... h6 {[%clk 0:03:03.2]} 49. h5 {[%clk 0:02:44.8]} 49... gxh5 {[%clk
0:02:59.4]} 50. Rxh6 {[%clk 0:02:43.8]} 50... Kg7 {[%clk 0:02:58.4]} 51. Rxh5
{[%clk 0:02:40.1]} 51... Kg6 {[%clk 0:02:58.3]} 52. Rg5+ {[%clk 0:02:38.5]}
52... Kf6 {[%clk 0:02:57.2]} 53. e5+ {[%clk 0:02:37.6]} 53... Kf7 {[%clk
0:02:56.5]} 54. e6+ {[%clk 0:02:36.1]} 1-0

[Event "Live Chess"]
[Site "Chess.com"]
[Date "2023.05.21"]
[Round "-"]
[White "raminguy"]
[Black "ChessTWSS"]
[Result "0-1"]
[WhiteElo "1940"]
[BlackElo "1634"]
[TimeControl "300"]
[EndTime "6:01:44 PDT"]
[Termination "ChessTWSS won by resignation"]

1. d4 {[%clk 0:04:56.5]} 1... d5 {[%clk 0:04:53.6]} 2. Nc3 {[%clk 0:04:54.8]}
2... c5 {[%clk 0:04:49.3]} 3. e4 {[%clk 0:04:48.5]} 3... dxe4 {[%clk 0:04:45.2]}
4. Bf4 {[%clk 0:04:45.1]} 4... cxd4 {[%clk 0:04:37.9]} 5. Nxe4 {[%clk
0:04:31.5]} 5... e5 {[%clk 0:04:26]} 6. Bxe5 {[%clk 0:04:20.7]} 6... Qa5+ {[%clk
0:04:21.1]} 7. c3 {[%clk 0:04:08.4]} 7... Qxe5 {[%clk 0:04:16.7]} 8. Qa4+ {[%clk
0:04:07]} 8... Nc6 {[%clk 0:04:09.4]} 9. f3 {[%clk 0:03:44.2]} 9... dxc3 {[%clk
0:04:04.5]} 10. O-O-O {[%clk 0:03:39]} 10... cxb2+ {[%clk 0:03:56.9]} 11. Kb1
{[%clk 0:03:37.7]} 11... a6 {[%clk 0:03:47.5]} 12. Re1 {[%clk 0:03:31.7]} 12...
Bf5 {[%clk 0:03:37.2]} 13. g4 {[%clk 0:03:25.8]} 13... Bb4 {[%clk 0:03:24.4]}
14. Re2 {[%clk 0:03:14.5]} 14... Nf6 {[%clk 0:03:18.1]} 15. gxf5 {[%clk
0:03:12.6]} 15... O-O {[%clk 0:03:10]} 16. Nxf6+ {[%clk 0:03:06.4]} 16... Qxf6
{[%clk 0:03:06.9]} 17. Rxb2 {[%clk 0:02:59.5]} 17... Bc3 {[%clk 0:02:58.8]} 18.
Rc2 {[%clk 0:02:48.8]} 18... Nb4 {[%clk 0:02:50.9]} 19. Rg2 {[%clk 0:02:33]}
19... b5 {[%clk 0:02:38.5]} 20. Qb3 {[%clk 0:02:25.4]} 20... Rfe8 {[%clk
0:02:32.1]} 21. Ne2 {[%clk 0:02:20.2]} 21... Qxf5+ {[%clk 0:02:27]} 22. Kc1
{[%clk 0:02:15.2]} 22... Nd3+ {[%clk 0:02:18.7]} 23. Kd1 {[%clk 0:02:06.6]}
23... Nb2+ {[%clk 0:02:13.8]} 24. Kc1 {[%clk 0:02:02.2]} 24... Bf6 {[%clk
0:01:57.3]} 25. Rhg1 {[%clk 0:01:49.4]} 25... Rac8+ {[%clk 0:01:52.3]} 26. Kd2
{[%clk 0:01:45.6]} 26... Qd7+ {[%clk 0:01:31]} 27. Ke1 {[%clk 0:01:43.1]} 27...
Nd3+ {[%clk 0:01:24.5]} 28. Kd2 {[%clk 0:01:35.1]} 28... Nb4+ {[%clk 0:01:18.5]}
29. Ke1 {[%clk 0:01:31.9]} 29... Bh4+ {[%clk 0:01:08.6]} 30. Rg3 {[%clk
0:01:25.1]} 30... Bxg3+ {[%clk 0:01:00.9]} 31. Rxg3 {[%clk 0:01:23.7]} 31... Qd4
{[%clk 0:00:39.6]} 32. a3 {[%clk 0:01:10.5]} 32... Rc1+ {[%clk 0:00:23.7]} 0-1

[Event "Live Chess"]
[Site "Chess.com"]
[Date "2023.05.21"]
[Round "-"]
[White "wot-not"]
[Black "AttackingSnowLeopard"]
[Result "0-1"]
[WhiteElo "1529"]
[BlackElo "2159"]
[TimeControl "300"]
[EndTime "6:01:49 PDT"]
[Termination "AttackingSnowLeopard won by checkmate"]

1. e4 {[%clk 0:04:49.2]} 1... c6 {[%clk 0:04:58.7]} 2. Nf3 {[%clk 0:04:47.8]}
2... d5 {[%clk 0:04:56.8]} 3. e5 {[%clk 0:04:46.7]} 3... Bg4 {[%clk 0:04:55.7]}
4. d4 {[%clk 0:04:45.5]} 4... e6 {[%clk 0:04:54.8]} 5. Bd3 {[%clk 0:04:44.5]}
5... Nd7 {[%clk 0:04:53.6]} 6. O-O {[%clk 0:04:43.5]} 6... Ne7 {[%clk
0:04:52.1]} 7. Nbd2 {[%clk 0:04:41.3]} 7... Nf5 {[%clk 0:04:50.6]} 8. Bxf5
{[%clk 0:04:39.8]} 8... Bxf5 {[%clk 0:04:49.2]} 9. Nb3 {[%clk 0:04:38.4]} 9...
c5 {[%clk 0:04:48.5]} 10. dxc5 {[%clk 0:04:36.3]} 10... Nxc5 {[%clk 0:04:48.4]}
11. Nxc5 {[%clk 0:04:35.5]} 11... Bxc5 {[%clk 0:04:47]} 12. a3 {[%clk
0:04:31.4]} 12... O-O {[%clk 0:04:44.4]} 13. Nd4 {[%clk 0:04:29.5]} 13... Bg6
{[%clk 0:04:42.5]} 14. c3 {[%clk 0:04:27.8]} 14... Rc8 {[%clk 0:04:39.5]} 15.
Bf4 {[%clk 0:04:22.9]} 15... Qb6 {[%clk 0:04:37.7]} 16. Qd2 {[%clk 0:04:21.2]}
16... Bxd4 {[%clk 0:04:34.4]} 17. cxd4 {[%clk 0:04:14]} 17... Rc2 {[%clk
0:04:32.3]} 18. Qb4 {[%clk 0:04:11]} 18... Rxb2 {[%clk 0:04:27.3]} 19. Qxb6
{[%clk 0:04:09.5]} 19... Rxb6 {[%clk 0:04:26.4]} 20. Rfc1 {[%clk 0:04:01]} 20...
Bd3 {[%clk 0:04:24]} 21. Rc7 {[%clk 0:03:57.1]} 21... Bc4 {[%clk 0:04:22.9]} 22.
Bg5 {[%clk 0:03:52.2]} 22... Rb3 {[%clk 0:04:19]} 23. Be7 {[%clk 0:03:49.3]}
23... Re8 {[%clk 0:04:17.4]} 24. Rd1 {[%clk 0:03:28.7]} 24... h6 {[%clk
0:04:13.9]} 25. f4 {[%clk 0:03:23.8]} 25... a6 {[%clk 0:04:06.8]} 26. Kf2 {[%clk
0:03:07.1]} 26... Rb2+ {[%clk 0:04:05.1]} 27. Kg3 {[%clk 0:03:04.6]} 27... Be2
{[%clk 0:03:58.3]} 28. Rdc1 {[%clk 0:02:57.7]} 28... Bd3 {[%clk 0:03:57.1]} 29.
h4 {[%clk 0:02:45.8]} 29... Be4 {[%clk 0:03:54.7]} 30. Re1 {[%clk 0:02:35.9]}
30... Rxg2+ {[%clk 0:03:51.8]} 31. Kh3 {[%clk 0:02:35.3]} 31... Rd2 {[%clk
0:03:51.3]} 32. Rxb7 {[%clk 0:02:31.6]} 32... Rxd4 {[%clk 0:03:48.7]} 33. Bc5
{[%clk 0:02:18.3]} 33... Rd3+ {[%clk 0:03:46.9]} 34. Kg4 {[%clk 0:02:16.3]}
34... Bf5+ {[%clk 0:03:40.4]} 35. Kh5 {[%clk 0:02:14.9]} 35... Bg6+ {[%clk
0:03:39.4]} 36. Kg4 {[%clk 0:02:13.9]} 36... h5+ {[%clk 0:03:36.3]} 37. Kg5
{[%clk 0:02:09.8]} 37... Rg3# {[%clk 0:03:30.2]} 0-1